bitfinex/quotes_BTCUSD_20251213
["timestamp","ask_amount","ask_price","bid_price","bid_amount"]
[1765654082280,0.56730721,90231.0,90230.0,0.05122536]
[1765654082493,0.54071949,90231.0,90230.0,0.05122536]
[1765654088290,0.58182949,90231.0,90230.0,0.05122536]
[1765654099391,0.58182949,90231.0,90230.0,0.05112957]
[1765654101292,0.63722448,90231.0,90230.0,0.05112957]
[1765654103112,0.58182949,90231.0,90230.0,0.05112957]
[1765654105763,0.69249395,90231.0,90230.0,0.05112957]
[1765654106169,0.70288707,90231.0,90230.0,0.05112957]
[1765654107714,0.6476176,90231.0,90230.0,0.05112957]
[1765654111277,0.70288707,90231.0,90230.0,0.05112957]
[1765654126679,0.70288707,90231.0,90230.0,0.00122536]
[1765654133159,0.6476176,90231.0,90230.0,0.00122536]
[1765654139281,0.59222261,90231.0,90230.0,0.00122536]
[1765654139436,0.70288707,90231.0,90230.0,0.00122536]
[1765654221053,0.59222261,90231.0,90230.0,0.00122536]
[1765654221254,0.6476176,90231.0,90230.0,0.00122536]
[1765654221762,0.59222261,90231.0,90230.0,0.00122536]
[1765654221909,0.6476176,90231.0,90230.0,0.00122536]
[1765654223790,0.59222261,90231.0,90230.0,0.00122536]
[1765654230794,0.55693949,90231.0,90230.0,0.00122536]
[1765654231224,0.58055949,90231.0,90230.0,0.00122536]
[1765654231416,0.59095445,90231.0,90230.0,0.00122536]
[1765654249585,0.70161891,90231.0,90230.0,0.00122536]
[1765654250426,0.59095445,90231.0,90230.0,0.00122536]
[1765654262017,0.54068445,90231.0,90230.0,0.00122536]
[1765654262535,0.54068644,90231.0,90230.0,0.00122536]
[1765654262894,0.55111644,90231.0,90230.0,0.00122536]
[1765654263126,0.57578644,90231.0,90230.0,0.00122536]
[1765654266755,0.59242644,90231.0,90230.0,0.00122536]
[1765654269721,0.56775644,90231.0,90230.0,0.00122536]
[1765654270347,0.55111644,90231.0,90230.0,0.00122536]
[1765654275037,0.59242644,90231.0,90230.0,0.00122536]
[1765654275968,0.55111644,90231.0,90230.0,0.00122536]
[1765654289347,0.54071949,90231.0,90230.0,0.00122536]
[1765654290131,0.58093949,90231.0,90230.0,0.00122536]
[1765654290349,0.59133651,90231.0,90230.0,0.00122536]
[1765654293880,0.58093949,90231.0,90230.0,0.00122536]
[1765654294259,0.59133611,90231.0,90230.0,0.00122536]
[1765654294670,0.58093949,90231.0,90230.0,0.00122536]
[1765654296365,0.59133578,90231.0,90230.0,0.00122536]
[1765654296878,0.58093949,90231.0,90230.0,0.00122536]
[1765654318238,0.59133649,90231.0,90230.0,0.00122536]
[1765654318878,0.58093949,90231.0,90230.0,0.00122536]
[1765654319242,0.69160395,90231.0,90230.0,0.00122536]
[1765654319484,0.58093949,90231.0,90230.0,0.00122536]
[1765654319665,0.69160395,90231.0,90230.0,0.00122536]
[1765654320144,0.70200087,90231.0,90230.0,0.00122536]
[1765654320378,0.69160395,90231.0,90230.0,0.00122536]
[1765654341884,0.2907,90223.0,90222.0,0.04037474]
[1765654342717,0.29095677,90223.0,90222.0,0.04061371]
[1765654350675,0.29095677,90223.0,90222.0,0.01066253]
[1765654351741,0.00025677,90223.0,90222.0,0.01066253]
[1765654352151,0.51262973,90223.0,90222.0,0.01066253]
[1765654352805,0.29095677,90223.0,90222.0,0.01066253]
[1765654362185,0.29095677,90223.0,90222.0,0.0107697]
[1765654364936,0.29095677,90223.0,90222.0,0.29101871]
[1765654364937,0.00025677,90223.0,90222.0,0.29101871]
[1765654365154,0.00025677,90223.0,90222.0,0.39555828]
[1765654365378,0.01107935,90258.0,90250.0,0.22160664]
[1765654365588,0.0004,90260.0,90250.0,0.27401951]
[1765654365803,0.0004,90260.0,90250.0,0.3847098]
[1765654366012,0.2907,90253.0,90250.0,0.41799038]
[1765654366448,0.0004,90260.0,90250.0,0.41799038]
[1765654366861,0.0004,90260.0,90250.0,0.47777911]
[1765654367323,0.0004,90260.0,90250.0,0.47958573]
[1765654367540,0.0004,90260.0,90250.0,0.47000877]
[1765654367767,0.0004,90260.0,90250.0,0.47200877]
[1765654367979,0.0004,90260.0,90250.0,0.47000877]
[1765654368410,0.0004,90260.0,90250.0,0.46800877]
[1765654368624,0.0004,90260.0,90250.0,0.48548877]
[1765654368840,0.052,90251.0,90250.0,0.48548877]
[1765654369274,0.05,90251.0,90250.0,0.48548877]
[1765654369476,0.05,90251.0,90250.0,0.56469901]
[1765654369700,0.05,90251.0,90250.0,0.56569901]
[1765654370112,0.05,90251.0,90250.0,0.48648877]
[1765654370334,0.05,90251.0,90250.0,0.48748877]
[1765654371177,0.05083609,90251.0,90250.0,0.48748877]
[1765654372041,0.05083609,90251.0,90250.0,0.47000877]
[1765654372251,0.05083609,90251.0,90250.0,0.48748877]
[1765654378430,0.05083609,90251.0,90250.0,0.54665318]
[1765654379824,0.05083609,90251.0,90250.0,0.48748877]
[1765654380890,0.05083609,90251.0,90250.0,0.54664681]
[1765654381399,0.05083609,90251.0,90250.0,0.48748877]
[1765654383001,0.05083609,90251.0,90250.0,0.60418877]
[1765654383174,0.05083609,90251.0,90250.0,0.77818877]
[1765654384566,0.0004,90260.0,90253.0,0.67300796]
[1765654384747,0.0004,90260.0,90253.0,0.69001083]
[1765654384979,0.0004,90260.0,90253.0,0.71365083]
[1765654385358,0.0004,90260.0,90253.0,0.74692163]
[1765654385985,0.0004,90260.0,90253.0,0.74892163]
[1765654386418,0.0004,90260.0,90253.0,0.80809207]
[1765654387438,0.0004,90260.0,90253.0,0.76640163]
[1765654390236,0.00023883,90259.0,90253.0,0.76640163]
[1765654391222,0.00023883,90259.0,90258.0,0.38229568]
[1765654391419,0.00023883,90259.0,90258.0,0.39929855]
[1765654391622,0.00023883,90259.0,90258.0,0.42293855]
[1765654391826,0.00023883,90259.0,90258.0,0.42737465]
[1765654393282,0.00023883,90259.0,90258.0,0.50651185]
[1765654393487,0.00023883,90259.0,90258.0,0.42737465]
[1765654395354,0.0004,90260.0,90259.0,0.16070868]
[1765654395563,0.0004,90260.0,90259.0,0.22096274]
[1765654399061,0.0004,90260.0,90259.0,0.23844274]
[1765654399262,0.0004,90260.0,90259.0,0.21883155]
[1765654400159,0.0004,90260.0,90259.0,0.20135155]
[1765654400537,0.0004,90260.0,90259.0,0.15133316]
[1765654400766,0.0004,90260.0,90259.0,0.19097161]
[1765654401796,0.0024,90260.0,90259.0,0.19097161]
[1765654424367,0.0024,90260.0,90259.0,0.19714161]
[1765654433379,0.0004,90260.0,90259.0,0.19714161]
[1765654433753,0.0014,90260.0,90259.0,0.19714161]
[1765654437558,0.0014,90260.0,90259.0,0.24716]
[1765654437770,0.0014,90260.0,90259.0,0.22500155]
[1765654438596,0.0004,90260.0,90259.0,0.22500155]
[1765654438813,0.0004,90260.0,90259.0,0.22943783]
[1765654439018,0.0014,90260.0,90259.0,0.22943783]
[1765654439252,0.0014,90260.0,90259.0,0.32904526]
[1765654439452,0.0004,90260.0,90259.0,0.32904526]
[1765654439856,0.0014,90260.0,90259.0,0.32904526]
[1765654441129,0.00023879,90267.0,90266.0,0.11069029]
[1765654441336,0.00023879,90267.0,90266.0,0.14951989]
[1765654441511,0.00023879,90267.0,90266.0,0.17398989]
[1765654443235,0.00123879,90267.0,90266.0,0.17398989]
[1765654448215,0.00123879,90267.0,90266.0,0.0632996]
[1765654448398,0.00123879,90267.0,90266.0,0.0807796]
[1765654448818,0.00123879,90267.0,90266.0,0.19146989]
[1765654451746,0.00123879,90267.0,90266.0,0.17398989]
[1765654451949,0.00123879,90267.0,90266.0,0.19146989]
[1765654452386,0.00123879,90267.0,90266.0,0.27106967]
[1765654452745,0.00123879,90267.0,90266.0,0.24891294]
[1765654454344,0.00123879,90267.0,90266.0,0.16931316]
[1765654454543,0.00123879,90267.0,90266.0,0.19146989]
[1765654456769,0.00123879,90267.0,90266.0,0.27107975]
[1765654456970,0.00123879,90267.0,90266.0,0.24892302]
[1765654457430,0.00123879,90267.0,90266.0,0.24892446]
[1765654457630,0.00123879,90267.0,90266.0,0.16931316]
[1765654457830,0.00123879,90267.0,90266.0,0.27108091]
[1765654457951,0.00123879,90267.0,90266.0,0.16931316]
[1765654458147,0.00123879,90267.0,90266.0,0.27108141]
[1765654458485,0.00123879,90267.0,90266.0,0.24892468]
[1765654460188,0.00123879,90267.0,90266.0,0.16931316]
[1765654460386,0.00123879,90267.0,90266.0,0.19003201]
[1765654460589,0.00123879,90267.0,90266.0,0.26965172]
[1765654460786,0.00123879,90267.0,90266.0,0.24893297]
[1765654461181,0.00162536,90267.0,90266.0,0.24893297]
[1765654461379,0.00162536,90267.0,90266.0,0.23145297]
[1765654461586,0.00162536,90267.0,90266.0,0.16931316]
[1765654463177,0.00162536,90267.0,90266.0,0.20258628]
[1765654464293,0.00162536,90267.0,90266.0,0.09189599]
[1765654468755,0.00162536,90267.0,90266.0,0.07441599]
[1765654468973,0.00162536,90267.0,90266.0,0.09189599]
[1765654475157,0.00162536,90267.0,90266.0,0.07280312]
[1765654475353,0.00162536,90267.0,90266.0,0.03953]
[1765654475941,0.00162536,90267.0,90266.0,0.09925338]
[1765654476360,0.00062536,90267.0,90266.0,0.09925338]
[1765654476779,0.00062536,90267.0,90266.0,0.10025338]
[1765654477492,0.00062536,90267.0,90266.0,0.04053]
[1765654477726,0.00062536,90267.0,90266.0,0.04153]
[1765654489425,0.00062536,90267.0,90266.0,0.10125338]
[1765654490069,0.00062536,90267.0,90266.0,0.04153]
[1765654493528,0.00062536,90267.0,90266.0,0.10125338]
[1765654494196,0.00062536,90267.0,90266.0,0.04153]
[1765654494967,0.00062536,90267.0,90266.0,0.10125338]
[1765654497254,0.00062536,90267.0,90266.0,0.04153]
[1765654498053,0.00062536,90267.0,90266.0,0.10126636]
[1765654499909,0.00062536,90267.0,90266.0,0.04153]
[1765654548343,0.00062536,90267.0,90266.0,0.15222029]
[1765654549236,0.00062536,90267.0,90266.0,0.04153]
[1765654551658,0.00062536,90267.0,90266.0,0.04314287]
[1765654551867,0.00062536,90267.0,90266.0,0.17598989]
[1765654552075,0.00062536,90267.0,90266.0,0.15383316]
[1765654552282,0.00062536,90267.0,90266.0,0.17598989]
[1765654552803,0.00062536,90267.0,90266.0,0.18042606]
[1765654553061,0.00062536,90267.0,90266.0,0.17842606]
[1765654553441,0.00062536,90267.0,90266.0,0.18142606]
[1765654553642,0.00062536,90267.0,90266.0,0.17942606]
[1765654553848,0.00062536,90267.0,90266.0,0.17842606]
[1765654554048,0.00162536,90267.0,90266.0,0.17842606]
[1765654554266,0.00362536,90267.0,90266.0,0.17842606]
[1765654556119,0.00362536,90267.0,90266.0,0.25798714]
[1765654556383,0.00362536,90267.0,90266.0,0.15626933]
[1765654556570,0.00362536,90267.0,90266.0,0.17842606]
[1765654556776,0.00362536,90267.0,90266.0,0.25798714]
[1765654556976,0.00362536,90267.0,90266.0,0.23583041]
[1765654561508,0.00362536,90267.0,90266.0,0.15626933]
[1765654561687,0.00362536,90267.0,90266.0,0.25798714]
[1765654562005,0.00362536,90267.0,90266.0,0.23583041]
[1765654562487,0.00362536,90267.0,90266.0,0.15626933]
[1765654562701,0.00362536,90267.0,90266.0,0.19590606]
[1765654563052,0.00362536,90267.0,90266.0,0.08521577]
[1765654563495,0.00362536,90267.0,90266.0,0.06305904]
[1765654563703,0.00362536,90267.0,90266.0,0.08397937]
[1765654563925,0.00362536,90267.0,90266.0,0.06305904]
[1765654564431,0.00362536,90267.0,90266.0,0.08397937]
[1765654564650,0.00362536,90267.0,90266.0,0.06305904]
[1765654572013,0.00362536,90267.0,90266.0,0.04557904]
[1765654572199,0.00362536,90267.0,90266.0,0.06305904]
[1765654591352,0.00362536,90267.0,90266.0,0.17374933]
[1765654598821,0.00362536,90267.0,90266.0,0.06305904]
[1765654602165,0.00362536,90267.0,90266.0,0.2846264]
[1765654602363,0.00362536,90267.0,90266.0,0.06305904]
[1765654603689,0.00362536,90267.0,90266.0,0.2846264]
[1765654605777,0.00362536,90267.0,90266.0,0.36427929]
[1765654609978,0.00362536,90267.0,90266.0,0.47496958]
[1765654610763,0.00362536,90267.0,90266.0,0.25340222]
[1765654610972,0.00362536,90267.0,90266.0,0.16931316]
[1765654616192,0.00362536,90267.0,90266.0,0.24896605]
[1765654617204,0.00354326,90267.0,90266.0,0.24896605]
[1765654620318,0.00354326,90267.0,90266.0,0.25340242]
[1765654620949,0.00354326,90267.0,90266.0,0.17374953]
[1765654625314,0.00354326,90267.0,90266.0,0.25338447]
[1765654625690,0.00354326,90267.0,90266.0,0.17374953]
[1765654626652,0.00354326,90267.0,90266.0,0.25338291]
[1765654626891,0.00354326,90267.0,90266.0,0.17374953]
[1765654641574,0.00354326,90267.0,90266.0,0.19340166]
[1765654641762,0.00354326,90267.0,90266.0,0.19340603]
[1765654665310,0.00354326,90267.0,90266.0,0.17374953]
[1765654670045,0.00354326,90267.0,90266.0,0.13850606]
[1765654670882,0.00354326,90267.0,90266.0,0.11068999]
[1765654671150,0.00354326,90267.0,90266.0,0.11512605]
[1765654673246,0.00354326,90267.0,90266.0,0.11069]
[1765654673469,0.00354326,90267.0,90266.0,0.11512606]
[1765654675298,0.00354326,90267.0,90266.0,0.11069]
[1765654675506,0.00354326,90267.0,90266.0,0.11512606]
[1765654676351,0.00354326,90267.0,90266.0,0.11068999]
[1765654676537,0.00354326,90267.0,90266.0,0.11512605]
[1765654741802,0.00354326,90267.0,90266.0,0.11069]
[1765654742144,0.00354326,90267.0,90266.0,0.11512606]
[1765654743507,0.00354326,90267.0,90266.0,0.11068999]
[1765654743708,0.00354326,90267.0,90266.0,0.11512605]
[1765654745406,0.00354326,90267.0,90266.0,0.11512606]
[1765654747217,0.00354326,90267.0,90266.0,0.00748932]
[1765654747359,0.00354326,90267.0,90266.0,0.01192538]
[1765654750092,0.00354326,90267.0,90264.0,0.0992475]
[1765654750286,0.00354326,90267.0,90266.0,0.00443606]
[1765654751326,0.00154326,90267.0,90266.0,0.00443606]
[1765654751852,0.00354326,90267.0,90266.0,0.00443606]
[1765654752140,0.00154326,90267.0,90266.0,0.00443606]
[1765654752517,0.00354326,90267.0,90266.0,0.00443606]
[1765654757406,0.00354326,90267.0,90266.0,0.11523606]
[1765654765565,0.00354326,90267.0,90266.0,0.06688338]
[1765654765706,0.00354326,90267.0,90266.0,0.17768338]
[1765654807398,0.00354326,90267.0,90266.0,0.12766499]
[1765654825489,0.00354326,90267.0,90266.0,0.11079]
[1765654825693,0.00354326,90267.0,90266.0,0.11522576]
[1765654827278,0.00354326,90267.0,90266.0,0.11079]
[1765654827714,0.00354326,90267.0,90266.0,0.11522576]
[1765654829025,0.00354326,90267.0,90266.0,0.11079]
[1765654829228,0.00354326,90267.0,90266.0,0.11522576]
[1765654830959,0.00354326,90267.0,90265.0,0.1367934]
[1765654831121,0.00354326,90267.0,90266.0,0.11079]
[1765654831314,0.00354326,90267.0,90266.0,0.11522576]
[1765654832352,0.00354326,90267.0,90266.0,0.11079]
[1765654832558,0.00354326,90267.0,90266.0,0.11522576]
[1765654832716,0.00154326,90267.0,90266.0,0.11522576]
[1765654832912,0.00354326,90267.0,90266.0,0.11522576]
[1765654833150,0.00354326,90267.0,90266.0,0.11555929]
[1765654833454,0.00154326,90267.0,90266.0,0.11555929]
[1765654833852,0.00354326,90267.0,90266.0,0.11555929]
[1765654835687,0.00054326,90267.0,90266.0,0.11555929]
[1765654835894,0.00054326,90267.0,90266.0,0.11575368]
[1765654836175,0.00154326,90267.0,90266.0,0.11575368]
[1765654836395,0.00154326,90267.0,90266.0,0.11637197]
[1765654836613,0.00054326,90267.0,90266.0,0.11637197]
[1765654840278,0.00054326,90267.0,90266.0,0.16524415]
[1765654842081,3.26e-06,90267.0,90266.0,0.16524415]
[1765654842279,9.032e-05,90274.0,90273.0,0.16080839]
[1765654842466,9.032e-05,90274.0,90273.0,0.26020802]
[1765654842914,9.032e-05,90274.0,90273.0,0.26464328]
[1765654843481,9.032e-05,90274.0,90273.0,0.48619346]
[1765654844684,0.00109032,90274.0,90273.0,0.48619346]
[1765654846019,0.00109032,90274.0,90273.0,0.38679383]
[1765654846354,0.0004,90280.0,90279.0,0.33232546]
[1765654846562,0.0004,90280.0,90279.0,0.34980546]
[1765654846950,0.0004,90280.0,90279.0,0.44912581]
[1765654847161,0.0004,90280.0,90279.0,0.50357927]
[1765654847565,0.0004,90280.0,90279.0,0.40425892]
[1765654849194,0.0004,90280.0,90279.0,0.50348527]
[1765654851950,0.0004,90280.0,90279.0,0.40425892]
[1765654852361,0.0004,90280.0,90279.0,0.29346892]
[1765654852554,0.0004,90280.0,90279.0,0.40425892]
[1765654854598,0.00078799,90280.0,90279.0,0.40425892]
[1765654856541,0.00078799,90280.0,90279.0,0.27598892]
[1765654856682,0.00078799,90280.0,90279.0,0.35420053]
[1765654857307,0.00078799,90280.0,90279.0,0.33676053]
[1765654857506,0.00078799,90280.0,90279.0,0.35420053]
[1765654860264,0.00178799,90280.0,90279.0,0.24341053]
[1765654860473,0.00278799,90280.0,90279.0,0.35420053]
[1765654870300,0.00278799,90280.0,90279.0,0.45342688]
[1765654870714,0.00278799,90280.0,90279.0,0.35420053]
[1765654872203,0.0004,90290.0,90289.0,0.33230092]
[1765654872607,0.00069838,90290.0,90289.0,0.33230092]
[1765654872761,0.00069838,90290.0,90289.0,0.3602931]
[1765654873367,0.00069838,90290.0,90289.0,0.3632931]
[1765654878496,0.00231125,90290.0,90289.0,0.14178218]
[1765654878654,0.00231125,90290.0,90289.0,0.003]
[1765654878860,0.10757033,90290.0,90289.0,0.003]
[1765654879488,0.10757033,90290.0,90289.0,0.002]
[1765654879669,0.01107566,90288.0,90285.0,0.09114228]
[1765654879867,0.01268853,90288.0,90285.0,0.09114228]
[1765654880587,0.22151583,90287.0,90285.0,0.09114228]
[1765654880904,0.2231287,90287.0,90285.0,0.09114228]
[1765654881067,0.2231287,90287.0,90285.0,0.01260725]
[1765654881871,0.2231287,90287.0,90285.0,0.01360725]
[1765654882069,0.22151828,90286.0,90285.0,0.01360725]
[1765654882273,0.22152412,90284.0,90282.0,0.11079]
[1765654883371,0.23259885,90285.0,90282.0,0.11179]
[1765654883587,0.01107603,90285.0,90282.0,0.11179]
[1765654883950,0.01268866,90287.0,90282.0,0.1248664]
[1765654884274,0.01107591,90286.0,90282.0,0.1248664]
[1765654884501,0.01107591,90286.0,90282.0,0.1238664]
[1765654884718,0.01268866,90287.0,90284.0,0.01107615]
[1765654885299,0.01268866,90287.0,90283.0,0.01107628]
[1765654885697,0.01268866,90287.0,90284.0,0.01107615]
[1765654885698,0.00161287,90287.0,90284.0,0.01107615]
[1765654886313,0.01268866,90287.0,90284.0,0.01307615]
[1765654888028,0.00161287,90287.0,90284.0,0.01407615]
[1765654889197,0.00161287,90287.0,90285.0,0.22151896]
[1765654890277,0.00161287,90287.0,90285.0,0.22351896]
[1765654890929,0.00161287,90287.0,90285.0,0.22451896]
[1765654891556,0.00161287,90287.0,90285.0,0.003]
[1765654896639,0.02930234,90287.0,90285.0,0.003]
[1765654898396,0.25082037,90287.0,90285.0,0.003]
[1765654898606,0.2231309,90287.0,90285.0,0.003]
[1765654898832,0.02067868,90286.0,90285.0,0.003]
[1765654899533,0.35389868,90286.0,90285.0,0.003]
[1765654899768,0.35389868,90286.0,90285.0,0.002]
[1765654899769,0.33322,90286.0,90285.0,0.002]
[1765654900182,0.33322,90286.0,90285.0,0.003]
[1765654901145,0.33322,90286.0,90285.0,0.001]
[1765654901519,0.33322,90286.0,90285.0,0.03280985]
[1765654902109,0.33322,90286.0,90285.0,0.003]
[1765654902310,0.33322,90286.0,90285.0,0.03080985]
[1765654904152,0.33322,90286.0,90285.0,0.001]
[1765654910299,0.33322,90286.0,90285.0,0.05464769]
[1765654912749,0.33322,90286.0,90285.0,0.02483784]
[1765654912893,0.36649419,90286.0,90285.0,0.02483784]
[1765654913299,0.42178919,90286.0,90285.0,0.02483784]
[1765654913505,0.36649419,90286.0,90285.0,0.02483784]
[1765654914161,0.42188918,90286.0,90285.0,0.02483784]
[1765654915025,0.47715865,90286.0,90285.0,0.02483784]
[1765654915985,0.36649419,90286.0,90285.0,0.02483784]
[1765654920635,0.30818,90286.0,90285.0,0.02483784]
[1765654922974,0.30818,90286.0,90285.0,0.05464769]
[1765654923172,0.30818,90286.0,90285.0,0.02483784]
[1765654924778,0.33107,90286.0,90285.0,0.02483784]
[1765654924977,0.30818,90286.0,90285.0,0.05464899]
[1765654926082,0.30818,90286.0,90285.0,0.02483784]
[1765654928262,0.32404,90286.0,90285.0,0.02483784]
[1765654928398,0.32404,90286.0,90285.0,0.05467926]
[1765654928399,0.34693,90286.0,90285.0,0.05467926]
[1765654928623,0.38020423,90286.0,90285.0,0.02483784]
[1765654934377,0.43559922,90286.0,90285.0,0.02483784]
[1765654935116,0.38020423,90286.0,90285.0,0.02483784]
[1765654937535,0.35731423,90286.0,90285.0,0.02483784]
[1765654938068,0.38020423,90286.0,90285.0,0.02483784]
[1765654950401,0.35731423,90286.0,90285.0,0.02483784]
[1765654950712,0.34145423,90286.0,90285.0,0.02483784]
[1765654951321,0.36615423,90286.0,90285.0,0.02483784]
[1765654952114,0.38225423,90286.0,90285.0,0.02483784]
[1765654953434,0.49291869,90286.0,90285.0,0.02483784]
[1765654953700,0.38225423,90286.0,90285.0,0.02483784]
[1765654956399,0.38225423,90286.0,90285.0,0.05467926]
[1765654965139,0.38225423,90286.0,90285.0,0.02483784]
[1765654965343,0.38225423,90286.0,90285.0,0.05467926]
[1765654967049,0.38225423,90286.0,90285.0,0.02483784]
[1765654967436,0.38225423,90286.0,90285.0,0.05469945]
[1765654977993,0.22151828,90286.0,90285.0,0.02483784]
[1765654978406,0.51221828,90286.0,90285.0,0.02483784]
[1765654979319,0.51221828,90286.0,90285.0,0.02583784]
[1765654979520,0.51221828,90286.0,90285.0,0.02383784]
[1765654979723,0.2907,90286.0,90285.0,0.02383784]
[1765654979968,0.2907,90286.0,90285.0,0.02583784]
[1765654982207,0.00023871,90288.0,90286.0,0.22151828]
[1765654982410,0.00023871,90288.0,90287.0,0.02383784]
[1765654983195,0.00023871,90288.0,90287.0,0.08344737]
[1765654983602,0.00023871,90288.0,90287.0,0.08444737]
[1765654984203,0.00023871,90288.0,90287.0,0.02483784]
[1765654984774,0.00023871,90288.0,90287.0,0.02383784]
[1765654985191,0.00023871,90288.0,90287.0,0.02683784]
[1765654985387,0.00023871,90288.0,90287.0,0.02583784]
[1765654985849,0.00023871,90288.0,90287.0,0.02683784]
[1765654990299,0.00023871,90288.0,90287.0,0.24835367]
[1765654991590,0.00023871,90288.0,90287.0,0.35914367]
[1765654993094,0.00023871,90288.0,90287.0,0.4187532]
[1765654996139,0.00023871,90288.0,90287.0,0.35914367]
[1765654996766,0.00023871,90288.0,90287.0,0.37021811]
[1765654999727,0.00023871,90288.0,90287.0,0.25942811]
[1765654999935,0.00023871,90288.0,90287.0,0.37021811]
[1765655005676,0.00023871,90288.0,90287.0,0.35914367]
[1765655007304,0.0004,90290.0,90287.0,0.35914367]
[1765655007506,0.0004,90290.0,90289.0,0.33230092]
[1765655007710,0.0004,90290.0,90289.0,0.35613876]
[1765655008722,0.0004,90290.0,90289.0,0.35813876]
[1765655010364,0.0004,90290.0,90289.0,0.35913876]
[1765655010498,0.0004,90290.0,90289.0,0.35713876]
[1765655010701,0.0004,90290.0,90289.0,0.35913876]
[1765655011120,0.0004,90290.0,90289.0,0.36113876]
[1765655017475,0.00023868,90296.0,90295.0,0.2214962]
[1765655017694,0.00023868,90296.0,90295.0,0.24533404]
[1765655018638,0.00023868,90296.0,90295.0,0.24633404]
[1765655019398,0.00023868,90296.0,90295.0,0.24833404]
[1765655019609,0.00023868,90296.0,90295.0,0.24733404]
[1765655019988,0.00023868,90296.0,90295.0,0.24933404]
[1765655022158,0.00023868,90296.0,90295.0,0.02783784]
[1765655027123,0.22173243,90296.0,90295.0,0.02783784]
[1765655029305,0.00023868,90296.0,90295.0,0.02783784]
[1765655031172,0.2233453,90296.0,90295.0,0.02783784]
[1765655031309,0.00185155,90296.0,90295.0,0.02783784]
[1765655032177,0.00185155,90296.0,90295.0,0.02583784]
[1765655032350,0.00185155,90296.0,90295.0,0.02383784]
[1765655032657,0.00185155,90296.0,90295.0,0.02683784]
[1765655041021,0.00185155,90296.0,90295.0,0.24833404]
[1765655041682,0.00185155,90296.0,90295.0,0.02683784]
[1765655042612,0.05442826,90296.0,90295.0,0.02683784]
[1765655042992,0.02953826,90296.0,90295.0,0.02683784]
[1765655048194,0.00185155,90296.0,90295.0,0.02683784]
[1765655076755,0.2233453,90296.0,90295.0,0.02683784]
[1765655103173,0.00185155,90296.0,90295.0,0.02683784]
[1765655104411,0.02953826,90296.0,90295.0,0.02683784]
[1765655135694,0.02953826,90296.0,90295.0,0.02689078]
[1765655138053,0.02953826,90296.0,90295.0,0.00953847]
[1765655138260,0.33389155,90296.0,90295.0,0.06927289]
[1765655138476,0.33389155,90296.0,90295.0,0.00953847]
[1765655138657,0.4224565,90296.0,90295.0,0.00953847]
[1765655138857,0.3671615,90296.0,90295.0,0.00953847]
[1765655139178,0.47782596,90296.0,90295.0,0.00953847]
[1765655146154,0.2215281,90282.0,90281.0,0.02986346]
[1765655146364,0.2215281,90282.0,90276.0,0.03981167]
[1765655146365,0.2907,90281.0,90280.0,0.02986346]
[1765655146562,0.30236,90281.0,90280.0,0.02986346]
[1765655146775,0.37697338,90281.0,90280.0,0.02986346]
[1765655147462,0.221533,90280.0,90279.0,0.02986346]
[1765655148643,0.221533,90280.0,90279.0,0.03086346]
[1765655149471,0.27953638,90280.0,90279.0,0.03086346]
[1765655149676,0.29614638,90280.0,90279.0,0.03086346]
[1765655150055,0.29614638,90280.0,90279.0,0.03186346]
[1765655150242,0.29614638,90280.0,90279.0,0.05570402]
[1765655150443,0.29614638,90280.0,90279.0,0.02584056]
[1765655153465,0.27141638,90280.0,90279.0,0.02584056]
[1765655154118,0.29614638,90280.0,90279.0,0.02584056]
[1765655156858,0.25480638,90280.0,90279.0,0.02584056]
[1765655157459,0.27228638,90280.0,90279.0,0.02584056]
[1765655157658,0.27228638,90280.0,90279.0,0.05570402]
[1765655161403,0.27228638,90280.0,90279.0,0.02584056]
[1765655181743,0.27228638,90280.0,90279.0,0.13663056]
[1765655181744,0.25480638,90280.0,90279.0,0.13663056]
[1765655182839,0.25480638,90280.0,90279.0,0.02584056]
[1765655184128,0.25480638,90280.0,90279.0,0.13663056]
[1765655185128,0.03327338,90280.0,90279.0,0.13663056]
[1765655185295,0.03327338,90280.0,90279.0,0.19636498]
[1765655186286,0.03327338,90280.0,90279.0,0.13663056]
[1765655187987,0.5233064,90282.0,90281.0,0.11079]
[1765655188160,0.5233064,90282.0,90281.0,0.1943742]
[1765655189256,0.5233064,90282.0,90281.0,0.02384056]
[1765655193833,0.5233064,90282.0,90281.0,0.02484056]
[1765655194268,0.5233064,90282.0,90281.0,0.02684056]
[1765655201714,0.25008139,90284.0,90281.0,0.02684056]
[1765655201916,0.10525908,90282.0,90281.0,0.003]
[1765655202116,0.10525908,90282.0,90281.0,0.02689105]
[1765655202492,0.10525908,90282.0,90281.0,0.02389105]
[1765655202904,0.10525908,90282.0,90281.0,0.02589105]
[1765655203315,0.10525908,90282.0,90281.0,0.02489105]
[1765655203699,0.10525908,90282.0,90281.0,0.02589105]
[1765655204159,0.32678718,90282.0,90281.0,0.02489105]
[1765655204380,0.32678718,90282.0,90281.0,0.02689105]
[1765655208251,0.10525908,90282.0,90281.0,0.02689105]
[1765655213030,0.01107505,90293.0,90286.0,0.01107591]
[1765655213214,0.01107505,90293.0,90287.0,0.08358506]
[1765655213416,0.30177481,90295.0,90292.0,0.11079]
[1765655213731,0.30177481,90295.0,90294.0,0.0397879]
[1765655213930,0.30177481,90295.0,90294.0,0.06367895]
[1765655214304,0.30177481,90295.0,90294.0,0.02389105]
[1765655214909,0.30177481,90295.0,90294.0,0.02489105]
[1765655215103,0.30177481,90295.0,90294.0,0.02589105]
[1765655215302,0.30177481,90295.0,90294.0,0.02489105]
[1765655215729,0.30177481,90295.0,90294.0,0.02589105]
[1765655216342,0.30177481,90295.0,90294.0,0.06466195]
[1765655216685,0.30177481,90295.0,90294.0,0.06566195]
[1765655216861,0.30177481,90295.0,90294.0,0.06366195]
[1765655217384,0.30177481,90295.0,90294.0,0.06466195]
[1765655219395,0.30177481,90295.0,90294.0,0.02489105]
[1765655225367,0.30177481,90295.0,90294.0,0.06466195]
[1765655232429,0.30177481,90295.0,90294.0,0.02489105]
[1765655233329,0.00185155,90296.0,90294.0,0.02489105]
[1765655233563,0.00185155,90296.0,90295.0,0.06366306]
[1765655234409,0.29255155,90296.0,90295.0,0.06366306]
[1765655234811,0.00023868,90296.0,90295.0,0.02389105]
[1765655236057,0.00023868,90296.0,90295.0,0.08458506]
[1765655236256,0.00023868,90296.0,90295.0,0.08454062]
[1765655236646,0.00023868,90296.0,90295.0,0.02489105]
[1765655236865,0.00023868,90296.0,90295.0,0.02589105]
[1765655237065,0.00023868,90296.0,90295.0,0.08553959]
[1765655238383,0.00023868,90296.0,90295.0,0.02589105]
[1765655245458,0.00023868,90296.0,90295.0,0.13668105]
[1765655246007,0.00023868,90296.0,90295.0,0.02589105]
[1765655258499,0.00023868,90296.0,90295.0,0.24738725]
[1765655260446,0.00023868,90296.0,90295.0,0.02589105]
[1765655278313,0.00023868,90296.0,90295.0,0.24738725]
[1765655278715,0.00023868,90296.0,90295.0,0.02589105]
[1765655281327,0.00023868,90296.0,90295.0,0.002]